Cogmind - Beta 9.3 @@@ ROGUE MODE // 2019.12.28 @ 10:35:53 // Winter2019/RPGLIKE Player: Cipherpunk Result: Destroyed by G-34 Mercenary with Small Laser Performance ------------- Evolutions (1) 500 Regions Visited (2) 400 Robots Destroyed (36) 180 Value Destroyed (1002) 1002 Prototype IDs (2) 40 Alien Tech Used (0) 0 Bonus (22) 22 TOTAL SCORE: 2144 Bonus ------- High Alert Combat Kills 22 Cogmind --------- Core Integrity 0/900 Matter 300/300 Energy 375/460 System Corruption 0% Temperature Cool (6) Movement Treading (160) Location -9/Materials Parts ------- > --- POWER (2) -------- Heavy Ion Engine Heavy Ion Engine > --- PROPULSION (2) --- Improved Treads Improved Treads > --- UTILITY (4) ------ Structural Scanner Terrain Scanner Seismic Analyzer Transport Network Coupler > --- WEAPON (2) ------- Light EM Pulse Cannon Light EM Pulse Cannon > --- INVENTORY (2) ---- Salvage Targeting Computer Grenade Launcher Peak State ------------ > --- POWER ------------ Heavy Ion Engine Heavy Ion Engine > --- PROPULSION ------- Improved Treads Improved Treads > --- UTILITY ---------- Structural Scanner Terrain Scanner Seismic Analyzer Transport Network Coupler > --- WEAPON ----------- Light EM Pulse Cannon Light EM Pulse Cannon > --- INVENTORY -------- Salvage Targeting Computer Grenade Launcher [Rating: 18] Favorites ----------- Power Light Nuclear Core Engine Light Ion Engine Power Core Light Nuclear Core Propulsion Hover Unit Treads Improved Treads Leg Aluminum Leg Wheel Compact Wheel Hover Unit Hover Unit Utility Seismic Analyzer Device Structural Scanner Processor Seismic Analyzer Weapon EM Pulse Gun Energy Gun EM Pulse Gun Energy Cannon Light EM Pulse Cannon Ballistic Gun Improved Assault Rifle Build | -11 -10 -9 ------- Run | Scr Mat Mat Slots Evolved 6 | 3 1 2 Power 1 | . . 1 Propulsion 1 | . 1 . Utility 3 | 2 . 1 Weapon 1 | 1 . . Parts Attached 22 | 2 11 9 Power 4 | . 2 2 Engine 3 | . 1 2 Core 1 | . 1 . Reactor . | . . . Propulsion 5 | 1 2 2 Treads 2 | . . 2 Leg . | . . . Wheel 2 | 1 1 . Hover 1 | . 1 . Flight . | . . . Utility 4 | . 3 1 Device 2 | . 1 1 Storage . | . . . Processor 2 | . 2 . Hackware . | . . . Protection . | . . . Artifact . | . . . Weapon 9 | 1 4 4 Energy Gun 3 | 1 2 . Energy Cannon 4 | . 2 2 Ballistic Gun 2 | . . 2 Ballistic Cannon . | . . . Launcher . | . . . Special Weapon . | . . . Impact Weapon . | . . . Slashing Weapon . | . . . Piercing Weapon . | . . . Special Melee Weapon . | . . . Unidentified Prototypes 2 | . . 2 Parts Lost . | . . . Power . | . . . Propulsion . | . . . Utility . | . . . Weapon . | . . . Highest Loss Streak . | . . . Average Slot Usage (%) 82 | . 76 91 Engine 4 | . 5 3 Core 8 | . 8 9 Treads 4 | . . 11 Wheel 3 | . 6 . Hover 6 | . 7 4 Device 10 | . 4 18 Processor 17 | . 14 21 Energy Gun 13 | . 19 3 Energy Cannon 9 | . 7 12 Ballistic Gun 2 | . . 5 Naked Turns . | . . . Heaviest Build 26 | 7 11 26 Greatest Support 51 | 16 16 51 Greatest Overweight (x) 2 | . 2 1 Average Overweight (x) . | . . . Largest Inventory Capacity 2 | 2 2 2 Average Capacity 2 | 2 2 2 Most Carried 2 | 2 2 2 Average Carried 1 | . 1 1 Final Capacity 2 | 2 2 2 Final Carried 2 | 1 2 2 Class Distribution -------------------- 68% | Mutant 31% | Skirmisher Dominant Class ---------------- Mutant | -10/Materials Skirmisher | -9/Materials Resources | -11 -10 -9 ----------- Run | Scr Mat Mat Matter Collected 522 | 216 114 192 Remotely . | . . . Salvage Created 1426 | . 701 725 Parts 79 | . 32 47 Haulers Intercepted 4 | . 2 2 Recyclers Shooed 1 | . 1 . Parts Field Recycled . | . . . Retrieved Matter . | . . . Parts Self-Destructed . | . . . Prevented . | . . . Kills | -11 -10 -9 ------- Run | Scr Mat Mat Combat Hostiles Destroyed 27 | . 11 16 Guns 12 | . 6 6 Cannons 12 | . 4 8 AOE 3 | . 1 2 Classes Destroyed 8 | . 6 2 Hauler 4 | . 2 2 Recycler 3 | . 2 1 Operator 1 | . 1 . Watcher 1 | . 1 . Swarmer 5 | . 2 3 Grunt 16 | . 9 7 Duelist 2 | . . 2 Sentry 4 | . . 4 Best Kill Streak 4 | . 2 4 Combat Bots Only 3 | . 2 3 Max Kills in Single Turn 2 | . 2 2 Gunslinging . | . . . Exploded 2 | . 1 2 Melee . | . . . Uniques/NPCs Destroyed . | . . . Combat | -11 -10 -9 -------- Run | Scr Mat Mat Damage Taken 1955 | . 958 997 Core 1610 | . 801 809 Absorbed by Shields . | . . . Redirected to Core 1148 | . 504 644 Core Remaining (%) 67 | 100 35 . Volleys Fired 115 | . 59 56 Largest 2 | . 2 2 Hottest 120 | . 120 112 Shots Fired 228 | . 116 112 Gun 138 | . 84 54 Cannon 90 | . 32 58 Launcher . | . . . Special . | . . . Kinetic 34 | . . 34 Thermal 76 | . 76 . Explosive . | . . . Electromagnetic 118 | . 40 78 Robot Hit Streak 18 | . 9 18 Robot Miss Streak 4 | . 4 3 Penetration Max . | . . . Secondary Targets 1 | . . 1 Max Gunslinging Chain 1 | . . 1 Shots Hit Robots 149 | . 76 73 Core Hits 51 | . 25 26 Critical Hits 1 | . . 1 Critical Kills . | . . . Critical Parts Destroyed . | . . . Melee Attacks . | . . . Impact . | . . . Slashing . | . . . Piercing . | . . . Sneak Attacks . | . . . Combat Hostiles . | . . . Follow-up Attacks . | . . . Damage Inflicted 2693 | . 1148 1545 Guns 1050 | . 654 396 Cannons 1186 | . 347 839 Explosions 456 | . 147 309 Melee . | . . . Ramming 1 | . . 1 Kinetic 341 | . . 341 Thermal 1016 | . 844 172 Explosive 137 | . . 137 Electromagnetic 1198 | . 304 894 Impact . | . . . Slashing . | . . . Piercing . | . . . Highest Corruption 4 | . 4 . Average Corruption 3 | . 3 . Corruption Purged . | . . . Effects 15 | . 15 . Message Errors 5 | . 5 . Heat Flow Errors 4 | . 4 . Data Loss (minor) 1 | . 1 . Targeting Errors 3 | . 3 . Weapon Failures 2 | . 2 . Overload Shots . | . . . Overflow Damage 39 | . 11 28 Projectiles 28 | . . 28 Explosions 11 | . 11 . Melee . | . . . Knockbacks . | . . . Impact . | . . . Kinetic . | . . . Secondary . | . . . Self-Inflicted Damage 236 | . 46 190 Shots 5 | . 2 3 Rammed 1 | . . 1 Targets Rammed 1 | . . 1 Kicked . | . . . Crushed . | . . . Highest Temperature 532 | . 532 9 Average Temperature 151 | . 152 9 Received Heat Transfer 573 | . 390 183 Effects 13 | . 13 . Shutdowns 3 | . 3 . Energy Bleed 1 | . 1 . Interference 2 | . 2 . Short Circuit 2 | . 2 . Damage (major) 4 | . 4 . Damage (core) 1 | . 1 . Siege Activations . | . . . Robots Corrupted 2 | . 1 1 Combat Hostiles . | . . . Parts Fried 7 | . 3 4 Impact Corruptions . | . . . Robots Melted . | . . . Combat Hostiles . | . . . Parts Melted 4 | . 4 . Heat Transferred 2126 | . 1976 150 Parts Sabotaged . | . . . Parts Stolen . | . . . Parts Stripped . | . . . Power Chain Reactions 4 | . 2 2 Missiles Intercepted . | . . . Alert | -11 -10 -9 ------- Run | Scr Mat Mat Peak Influence 447 | . 267 447 Average Influence 146 | . 125 179 Maximum Alert Level 2 | . 1 2 Low Security (%) 76 | 100 86 62 Level 1 22 | . 13 35 Level 2 . | . . 2 Level 3 . | . . . Level 4 . | . . . Level 5 . | . . . High Security . | . . . Max Security . | . . . Squads Dispatched 2 | . 2 . Investigation 1 | . 1 . Extermination . | . . . Reinforcement 1 | . 1 . Assault . | . . . Garrison . | . . . Intercept . | . . . Construction Impeded . | . . . Haulers Reinforced . | . . . Stealth | -11 -10 -9 --------- Run | Scr Mat Mat Distress Signals 3 | . . 3 Communications Jammed . | . . . Distress Signals . | . . . Times Spotted 59 | . 24 35 Peak Tracking Total 7 | . 6 7 Tactical Retreats 7 | . 4 3 Traps | -11 -10 -9 ------- Run | Scr Mat Mat Traps Triggered 2 | . 2 . Indirectly . | . . . Trap Hack Attempts . | . . . Triggered . | . . . Disarmed . | . . . Reprogrammed . | . . . Reused . | . . . Traps Extracted . | . . . Installed . | . . . Triggered 1 | . 1 . Machines | -11 -10 -9 ---------- Run | Scr Mat Mat Machines Disabled 5 | . 1 4 Max in Single Turn 1 | . 1 1 Machines Sabotaged . | . . . Garrisons Compromised . | . . . Overloaded Fab Kills . | . . . Fab Network Shutdowns . | . . . Hacking | -11 -10 -9 --------- Run | Scr Mat Mat Machines Accessed 2 | . . 2 Terminals 2 | . . 2 Fabricators . | . . . Repair Stations . | . . . Recycling Units . | . . . Scanalyzers . | . . . Garrison Access . | . . . Total Hacks 6 | . . 6 Successful 3 | . . 3 Failed 3 | . . 3 Catastrophic 1 | . . 1 Database Lockouts . | . . . Manual 6 | . . 6 Terminals 6 | . . 6 Fabricators . | . . . Repair Stations . | . . . Recycling Units . | . . . Scanalyzers . | . . . Garrison Access . | . . . Terminal Hacks 2 | . . 2 Terminal Index 1 | . . 1 Recall Reinforcements 1 | . . 1 Fabricator Hacks . | . . . Repair Station Hacks . | . . . Recycling Unit Hacks . | . . . Scanalyzer . | . . . Garrison Access Hacks . | . . . Unauthorized Hacks 2 | . . 2 Terminals 1 | . . 1 Botnet 1 | . . 1 Fabricators . | . . . Repair Stations . | . . . Recycling Units . | . . . Scanalyzers . | . . . Garrison Access . | . . . Data Cores Recovered . | . . . Used . | . . . Hacking Detections 2 | . . 2 Full Trace Events . | . . . Feedback Events . | . . . Feedback Blocked . | . . . Robot Schematics Acquired . | . . . Robots Built . | . . . Matter . | . . . Time . | . . . Total Robot Build Rating . | . . . Part Schematics Acquired . | . . . Parts Built . | . . . Matter . | . . . Time . | . . . Total Part Build Rating . | . . . Parts Repaired . | . . . Time . | . . . Parts Recycled . | . . . Recycled Matter . | . . . Retrieved Matter . | . . . Retrieved Components . | . . . Parts Scanalyzed . | . . . Part Schematics Acquired . | . . . Parts Damaged . | . . . Bothacking | -11 -10 -9 ------------ Run | Scr Mat Mat Used RIF Installer . | . . . Robots Hacked . | . . . Non-combat . | . . . Combat . | . . . Robot Hacks Applied . | . . . Relay Couplers Released . | . . . Robots Rewired . | . . . Allies Hacked . | . . . Hacks Repelled . | . . . Allies | -11 -10 -9 -------- Run | Scr Mat Mat Total Allies . | . . . Largest Group . | . . . Highest-Rated Group . | . . . Highest-Rated Ally . | . . . Total Orders . | . . . Ally Attacks . | . . . Total Damage . | . . . Kills . | . . . Allies Corrupted . | . . . Allies Melted . | . . . Intel | -11 -10 -9 ------- Run | Scr Mat Mat Robot Analysis Total . | . . . Derelict Logs Recovered . | . . . Drone Launches . | . . . Drone Recoveries . | . . . Exploration | -11 -10 -9 ------------- Run | Scr Mat Mat Turns Passed 1433 | 16 821 596 Spaces Moved 784 | 11 491 282 Core 35 | . 35 . Treads 123 | . . 123 Legs 4 | 4 . . Wheels 149 | 7 142 . Hover 473 | . 314 159 Flight . | . . . Fastest Speed 50 | 100 50 60 Average Speed 115 | 107 112 121 Slowest Speed 160 | 120 150 160 Overloaded Moves . | . . . Propulsion Burnouts . | . . . Robots Hopped . | . . . Cave-ins Triggered . | . . . Exploration Rate (%) 38 | 2 80 33 Regions Visited 2 Branch Regions . Pre-discovered Areas . | . . . Known Exits Taken . | . . . Unknown Exits Taken 2 | 1 1 . Scrap Searched . | . . . Spaces Dug . | . . . Terrain Destroyed 41 | . 5 36 Melee . | . . . Projectile . | . . . AOE 41 | . 5 36 Actions | -11 -10 -9 --------- Run | Scr Mat Mat Total 1076 | 15 640 421 Wait 102 | . 61 41 Move 782 | 10 490 282 Hop . | . . . Pick Up 5 | 1 2 2 Fast Attach 20 | 2 9 9 Attach 1 | . 1 . Detach 1 | 1 . . Swap 1 | . 1 . Drop 17 | 1 8 8 Fire 115 | . 59 56 Melee . | . . . Ram . | . . . Kick . | . . . Crush 1 | . . 1 Escape Stasis . | . . . Rewire . | . . . Trap . | . . . Miscellaneous 31 | . 9 22 Route ------- -11/Scrapyard -10/Materials (discovered 3 exits: *Mat x3) -9/Materials (discovered 2 exits: [*Min x2]) History --------- Turn | Location | Event 1 | -11/Scrapyard | Upgraded with Utility slot (x2) 1 | -11/Scrapyard | Upgraded with Weapon slot (x1) 1 | -11/Scrapyard | Discovered new exit (range 1) 17 | -11/Scrapyard | Entered Materials 140 | -10/Materials | Core integrity fell below 50% 269 | -10/Materials | Discovered new exit (range 16) 305 | -10/Materials | Build established: Mutant 654 | -10/Materials | Discovered new exit (range 16) 701 | -10/Materials | Core integrity fell below 20% 798 | -10/Materials | Discovered new exit (range 5) 820 | -10/Materials | Reached level 2 823 | -10/Materials | Upgraded with Propulsion slot (x1) 838 | -10/Materials | Entered another Materials area 839 | -9/Materials | Core integrity fell below 50% 840 | -9/Materials | Reached level 3 842 | -9/Materials | Upgraded with Utility slot (x1) 1012 | -9/Materials | Discovered new exit (range 15) 1090 | -9/Materials | Discovered new exit (range 14) 1120 | -9/Materials | Core integrity fell below 20% 1268 | -9/Materials | Reached level 4 1288 | -9/Materials | Build established: Skirmisher 1341 | -9/Materials | Upgraded with Power slot (x1) 1434 | -9/Materials | Destroyed by G-34 Mercenary with Small Laser Last Messages --------------- >>Recall(Reinforcements) Establishing remote squad link... No tasked reinforcement squads found. 01376_ R-06 Scavenger collects Faulty Hvy. Ion Engine. 01395_ Electrolysis Chamber disabled. 01422_ L-31 Rogue suffers critical hit. 01422_ Chain reaction triggered in Imp. Ion Engine. 01422_ Nuclear Reactor explodes. 01422_ G-34 Mercenary destroyed. 01422_ L-31 Rogue destroyed. 01424_ W-16 Scout sends out distress signal. 01424_ R-06 Scavenger inserts Faulty Hvy. Ion Engine into recycling unit. 01425_ K-01 Serf collects debris. 01426_ W-16 Scout sends out distress signal. 01427_ R-06 Scavenger inserts Prototype Energy Cannon into recycling unit. 01428_ Recycling unit begins recycling process. 01428_ Y-45 Defender destroyed. 01431_ K-01 Serf collects debris. 01431_ Matter Pump disabled. 01433_ K-01 Serf collects debris. Map ----- +----------------------------------------------------+ | | | | | | | | | | | | | ?????????????????????????????????????????????????? | | ?????????????????????????????????????????????????? | | ?????????????????????????????????????????????????? | | ?????????????????????????????????????????????????? | | ?????????????????????????????????????????????????? | | ???????????????????? ????????????????????????????? | | ???????????????????????????? ????????????????????? | | ?????????????????###??+?????########??##?????????? | | ??????????????????????????? ? """ #?????????? | | ????????????????????#??????? "Y" #?????????? | | ??????????????????? ???????? #?????????? | | ????????????????#???????#???#[ #?????????? | | ????????????????#?#???#???#?# #?????????? | | ????????????? ??############# #?????????? | | ????????????????# ### r ???????????? | | ???? ???????????# ! ## """ ? ##????????? | | ??? ???????????# [ ks """r ?????? | | ##???"" ??????# * =%ss %%"" a????? | | ??#???#??#????#?# """ %! % ????? | | ????#?? ? ????## """ @ g ????? | | ??###????"? ???# """ ##### #####??????? | | ????#???""S? ? ## ##???? # ?????????? | | ####????""? ? ?#### #####???????????????? | | " #####? ?? ? ###?## #?? ????????????? | | " # #??"" ? ?##?# # k #??? ???????????? | | " + < # ??" ? ######+### ## " #??????? ???????? | | # # ?"?? ##?## ## "" #? ?????????????? | | ## ## ? ?###?# """ ## """ #? ? ?"???????? | | ## #####+#+####### """ ## #??? ???????????? | | #### ##### ## """ ## # ??#??????????? | | + % * [ ## ##+##+## ##?????????? | | #%##### ## """ ## ##?????????? | | # ########## ## """ + #??????????? | | # ########?# ## """ ## #??????????? | | # # ## *## ## ########??????????? | | # # " ## ]%/ ## ##????????????????? | | #### # """ ## ## "T" ## ##????#???????????? | | ####=# "" ## *## """ ## ##????????????????? | | ####+# """ ## ## ## #? ????#??????????? | | *! # "" # =* ##+###### #????? ???????????? | | "" !# """ # = ! #?????????????????? | | "=![#]] """ + [ #?"???????????????? | | "*= + ] """ # # ????????????????? | | =[ [# [ " # # #?????????????????? | +----------------------------------------------------+ Best States ------------- Heat Dissipation 61 Energy Generation 23 Energy Capacity 460 Matter Stores 300 Matter Capacity 300 Sight Range 16 Robot Scan Range 2 Terrain Scan Range 14 Terrain Scan Density 60 Evasion (%) 53 Recoil Reduction 2 Offensive Hacking 10 Defensive Hacking 5 Item Schematics ----------------- None Robot Schematics ------------------ None Fabricated ------------ Nothing Alien Tech Used ----------------- None Achievements -------------- None Challenges ------------ None RPGLIKE | -11 -10 -9 --------- Run | Scr Mat Mat Levels Raised 3 | . 1 2 XP Earned 8390 | 3000 1530 3860 XP Spent 6500 | 3000 1500 2000 Upgrades 25 | 8 14 3 Power Slot 1 | . . 1 Propulsion Slot 1 | . 1 . Utility Slot 3 | 2 . 1 Weapon Slot 1 | 1 . . Core Integrity 6 | . 6 . Heat Dissipation 6 | . 6 . Mass Support 1 | . 1 . Inventory Capacity 2 | 2 . . Sensor Range 1 | 1 . . Hack Attack % 2 | 1 . 1 Hack Defense % 1 | 1 . . Protomatter Created 314 | . 72 242 Integrity Restored 702 | . 216 486 Core 702 | . 216 486 Protomatter Decayed 33 | . . 33 Game ------ Seed StructuralPlasmaStabilizer Manual? 0 Play Time 00:24:09 Cumulative 56.4 hours Start 2019.12.28 @ 10:06:56 End 2019.12.28 @ 10:35:53 Sessions 1 Manual Loads 0 Difficulty Rogue Special Mode Winter2019/RPGLIKE Game No. 57 Rogue 57 Adventurer 0 Explorer 0 Win Type - Total 0 Types 0/0/0/0/0/0/0 Lore% 27 Gallery% 44 Achievement% 32 Wizard Run 0 Options --------- ASCII 0 Keyboard 1 Movement Numpad Keybinds 0 Fullscreen 2 Font 18/SmallcapsGlow Map View 76x50 Tactical HUD 1 Map Filters NONE Filters NONE Steam 1 RUN: 44db27b0-62b5-438d-81cb-12c82691cd35